Cogmind - Beta 11 @@@ ROGUE MODE // 2022.04.08 @ 23:40:40 Player: Zygos Result: Destroyed by L-31 Rogue with Katana Performance ------------- Evolutions (2) 1000 Regions Visited (3) 600 Robots Destroyed (68) 340 Value Destroyed (1964) 1964 Prototype IDs (2) 40 Alien Tech Used (0) 0 Bonus (160) 160 TOTAL SCORE: 4104 Bonus ------- High Alert Combat Kills 160 Cogmind --------- Core Integrity 0/550 Matter 61/300 Energy 100/100 System Corruption 5% Temperature Cool (0) Movement Core (700) Ox13 Location -8/Materials Parts ------- > --- POWER (2) -------- (None) > --- PROPULSION (2) --- (None) > --- UTILITY (5) ------ High-capacity Storage Unit > --- WEAPON (2) ------- Light Assault Rifle > --- INVENTORY (20) --- (None) Peak State ------------ > --- POWER ------------ Light Ion Engine Light Ion Engine > --- PROPULSION ------- Gravmag System Gravmag System > --- UTILITY ---------- High-capacity Storage Unit > --- WEAPON ----------- Heavy Rocket Launcher Heavy Rocket Launcher > --- INVENTORY -------- Light Assault Rifle Improved Light Cannon Improved Light Cannon Shock Bomb Launcher Improved Datajack [Rating: 20] Favorites ----------- Power Light Ion Engine Engine Light Ion Engine Propulsion Aluminum Leg Treads Light Treads Leg Aluminum Leg Hover Unit Gravmag System Flight Unit VTOL Module Utility High-capacity Matter Pod Device Heat Sink Storage High-capacity Matter Pod Processor Terrain Scan Processor Protection Light Armor Plating Weapon Improved Assault Rifle Energy Gun Small Laser Energy Cannon Light EM Pulse Cannon Ballistic Gun Improved Assault Rifle Ballistic Cannon Improved Light Cannon Launcher Heavy Rocket Launcher Special Weapon Mining Laser Special Melee Weapon Improved Datajack Build | -11 -10 -9 -8 ------- Run | Scr Mat Mat Mat Slots Evolved 4 | . . 2 2 Power 1 | . . 1 . Propulsion . | . . . . Utility 3 | . . 1 2 Weapon . | . . . . Parts Attached 77 | 5 13 40 19 Power 13 | 1 1 9 2 Engine 13 | 1 1 9 2 Core . | . . . . Reactor . | . . . . Propulsion 14 | 2 2 7 3 Treads 3 | . . 3 . Leg 8 | 2 2 3 1 Wheel . | . . . . Hover 2 | . . . 2 Flight 1 | . . 1 . Utility 11 | . 3 7 1 Device 6 | . 2 4 . Storage 3 | . 1 1 1 Processor 1 | . . 1 . Hackware . | . . . . Protection 1 | . . 1 . Artifact . | . . . . Weapon 39 | 2 7 17 13 Energy Gun 12 | 2 3 7 . Energy Cannon 1 | . . 1 . Ballistic Gun 5 | . 2 2 1 Ballistic Cannon 7 | . . 3 4 Launcher 11 | . . 4 7 Special Weapon 2 | . 2 . . Impact Weapon . | . . . . Slashing Weapon . | . . . . Piercing Weapon . | . . . . Special Melee Weapon 1 | . . . 1 Unidentified Prototypes 2 | . 1 1 . Parts Lost 36 | . 6 16 14 Power 9 | . 1 5 3 Propulsion 6 | . 2 2 2 Utility 7 | . . 5 2 Weapon 14 | . 3 4 7 Highest Loss Streak 8 | . 4 8 7 To Critical Strikes . | . . . . Average Slot Usage (%) 77 | . 90 87 48 Engine 15 | . 13 17 13 Treads 2 | . . 6 . Leg 16 | . 26 14 8 Hover 1 | . . . 3 Device 10 | . 11 14 2 Storage 10 | . 11 10 8 Protection 1 | . . 3 . Energy Gun 7 | . 15 6 . Ballistic Gun 5 | . 3 9 . Ballistic Cannon 2 | . . 2 2 Launcher 2 | . . . 8 Special Weapon 1 | . 6 . . Naked Turns . | . . . . Heaviest Build 60 | 6 11 29 60 Greatest Support 40 | 20 20 40 20 Greatest Overweight (x) 17 | . 3 4 17 Average Overweight (x) . | . . . 1 Largest Inventory Capacity 20 | 5 5 5 20 Average Capacity 7 | 5 5 5 15 Most Carried 6 | 2 5 5 6 Average Carried 3 | . 2 3 4 Final Capacity 20 | 5 5 5 20 Final Carried 5 | 1 3 5 . Class Distribution -------------------- 50% | Mutant 49% | Scavenger-Mutant Dominant Class ---------------- Mutant | -10/Materials Scavenger-Mutant | -9/Materials Mutant | -8/Materials Resources | -11 -10 -9 -8 ----------- Run | Scr Mat Mat Mat Matter Collected 1477 | 250 293 715 219 Remotely . | . . . . Salvage Created 1766 | 50 231 973 512 Parts 124 | 2 12 77 33 Haulers Intercepted . | . . . . Recyclers Shooed . | . . . . Parts Field Recycled . | . . . . Retrieved Matter . | . . . . Parts Self-Destructed . | . . . . Prevented . | . . . . Kills | -11 -10 -9 -8 ------- Run | Scr Mat Mat Mat Combat Hostiles Destroyed 53 | 1 8 25 19 Guns 21 | 1 7 13 . Cannons 11 | . 1 8 2 AOE 20 | . . 3 17 Classes Destroyed 9 | 1 2 3 3 Worker 4 | . . 1 3 Builder 3 | . . 1 2 Recycler 2 | . . . 2 Watcher 6 | . 1 4 1 Swarmer 14 | . 3 7 4 Grunt 29 | 1 5 12 11 Duelist 2 | . . . 2 Protector 1 | . . . 1 Sentry 7 | . . 6 1 Best Kill Streak 8 | 1 5 6 8 Combat Bots Only 7 | 1 5 5 7 Max Kills in Single Turn 3 | 1 1 2 3 Gunslinging 1 | . . 1 . Exploded 3 | . . 1 3 Melee . | . . . . Uniques/NPCs Destroyed . | . . . . Combat | -11 -10 -9 -8 -------- Run | Scr Mat Mat Mat Damage Taken 4245 | 20 572 1883 1770 Core 923 | . 144 222 557 Absorbed by Shields . | . . . . Regen/Repaired (Parts) 89 | . . 89 . Core Remaining (%) 62 | 100 42 44 . Volleys Fired 146 | 3 36 77 30 Largest 2 | 2 2 2 2 Hottest 200 | 80 200 126 78 Shots Fired 251 | 6 60 139 46 Gun 153 | 6 49 97 1 Cannon 48 | . . 35 13 Launcher 39 | . . 7 32 Special 11 | . 11 . . Kinetic 103 | . 1 88 14 Thermal 78 | 3 52 23 . Explosive 38 | . . 7 31 Electromagnetic 32 | 3 7 21 1 Robot Hit Streak 24 | 2 8 24 8 Robot Miss Streak 9 | 3 5 9 3 Penetration Max . | . . . . Secondary Targets 1 | . . 1 . Max Gunslinging Chain 1 | . . 1 . Shots Hit Robots 168 | 2 38 99 29 Core Hits 116 | 1 12 48 55 Critical Kills . | . . . . Critical Parts Destroyed . | . . . . Critical Strikes 2 | . . . 2 Blast 2 | . . . 2 Melee Attacks 2 | . . . 2 Impact . | . . . . Slashing . | . . . . Piercing . | . . . . Sneak Attacks . | . . . . Combat Hostiles . | . . . . Follow-up Attacks . | . . . . Damage Inflicted 5557 | 26 494 1994 3043 Guns 1411 | 26 398 978 9 Cannons 775 | . . 617 158 Explosions 3274 | . . 399 2875 Melee . | . . . . Ramming 1 | . . . 1 Kinetic 1262 | . 18 1077 167 Thermal 734 | 11 417 306 . Explosive 3021 | . . 258 2763 Electromagnetic 539 | 15 59 353 112 Impact . | . . . . Slashing . | . . . . Piercing . | . . . . Highest Corruption 18 | . . 18 5 Average Corruption 11 | . . 15 5 Corruption Purged . | . . . . Corruption Blocked . | . . . . Effects 64 | . . 50 14 Message Errors 13 | . . 10 3 Matter Fused 15 | . . 13 2 Heat Flow Errors 8 | . . 4 4 Energy Discharges 9 | . . 6 3 Parts Rejected 2 | . . 1 1 Data Loss (minor) 9 | . . 9 . Data Loss (major) 1 | . . . 1 Misfires 4 | . . 4 . Alerts 1 | . . 1 . Misdirections 1 | . . 1 . Weapon Failures 1 | . . 1 . Overload Shots . | . . . . Overflow Damage 231 | . . 130 101 Projectiles 6 | . . 6 . Explosions 225 | . . 124 101 Melee . | . . . . Knockbacks 5 | . . . 5 Impact . | . . . . Kinetic 4 | . . . 4 Secondary 1 | . . . 1 Self-Inflicted Damage 445 | . . 120 325 Shots 10 | . . 3 7 Rammed 1 | . . . 1 Targets Rammed 1 | . . . 1 Kicked . | . . . . Crushed . | . . . . Highest Temperature 268 | 66 250 264 268 Average Temperature 72 | 37 80 63 82 Received Heat Transfer 1287 | 12 231 567 477 Effects 1 | . . . 1 Interference 1 | . . . 1 Siege Activations . | . . . . Robots Corrupted 1 | . . 1 . Combat Hostiles 1 | . . 1 . Parts Fried 1 | . . 1 . Impact Corruptions . | . . . . Robots Melted . | . . . . Combat Hostiles . | . . . . Parts Melted 4 | . 2 2 . Heat Transferred 1443 | 25 950 468 . Parts Sabotaged . | . . . . Parts Stolen . | . . . . Parts Stripped . | . . . . Power Chain Reactions 1 | . . 1 . Missiles Intercepted . | . . . . Alert | -11 -10 -9 -8 ------- Run | Scr Mat Mat Mat Peak Influence 792 | 20 178 518 792 Initial 183 | . 13 . 183 Average 271 | 2 72 233 556 Maximum Alert Level 3 | . . 2 3 Low Security (%) 51 | 100 100 47 5 Level 1 17 | . . 33 8 Level 2 27 | . . 18 71 Level 3 3 | . . . 14 Level 4 . | . . . . Level 5 . | . . . . High Security . | . . . . Max Security . | . . . . Squads Dispatched 7 | . 2 1 4 Investigation 1 | . 1 . . Extermination . | . . . . Reinforcement 3 | . 1 1 1 Assault 2 | . . . 2 Garrison 1 | . . . 1 Intercept . | . . . . Searches Triggered . | . . . . Construction Impeded . | . . . . Haulers Reinforced . | . . . . Active Scanning Responses . | . . . . Cargo Convoy Interrupts . | . . . . Stealth | -11 -10 -9 -8 --------- Run | Scr Mat Mat Mat Distress Signals 3 | . . 2 1 Communications Jammed . | . . . . Distress Signals . | . . . . Times Spotted 89 | 1 19 39 30 Peak Tracking Total 6 | 1 4 5 6 Tactical Retreats 4 | . . 1 3 Traps | -11 -10 -9 -8 ------- Run | Scr Mat Mat Mat Traps Triggered 3 | . . 3 . Indirectly . | . . . . Trap Hack Attempts . | . . . . Triggered . | . . . . Disarmed . | . . . . Reprogrammed . | . . . . Reused . | . . . . Traps Extracted . | . . . . Installed . | . . . . Triggered . | . . . . Machines | -11 -10 -9 -8 ---------- Run | Scr Mat Mat Mat Machines Disabled 8 | . . 3 5 Max in Single Turn 2 | . . 2 2 Machines Sabotaged . | . . . . Garrisons Compromised . | . . . . Overloaded Fab Kills . | . . . . Hacking | -11 -10 -9 -8 --------- Run | Scr Mat Mat Mat Machines Accessed 7 | . 3 4 . Terminals 4 | . 2 2 . Fabricators . | . . . . Repair Stations 1 | . . 1 . Recycling Units 1 | . 1 . . Scanalyzers 1 | . . 1 . Garrison Access . | . . . . Total Hacks 28 | . 14 14 . Successful 23 | . 11 12 . Failed 5 | . 3 2 . Catastrophic 1 | . . 1 . Database Lockouts . | . . . . Manual . | . . . . Terminals 11 | . 5 6 . Fabricators . | . . . . Repair Stations 4 | . . 4 . Recycling Units 9 | . 9 . . Scanalyzers 4 | . . 4 . Garrison Access . | . . . . Terminal Hacks 8 | . 4 4 . Robot Analysis 1 | . 1 . . Alert Level 2 | . 1 1 . Locate Traps 1 | . . 1 . Maintenance Status 2 | . 1 1 . Hauler Manifests 1 | . 1 . . Registered Prototypes 1 | . . 1 . Fabricator Hacks . | . . . . Repair Station Hacks 4 | . . 4 . Scan Component 2 | . . 2 . Repair 2 | . . 2 . Recycling Unit Hacks 7 | . 7 . . Recycle Component 1 | . 1 . . Process 2 | . 2 . . Report Inventory 1 | . 1 . . Retrieve Matter 3 | . 3 . . Scanalyzer 4 | . . 4 . Insert Component 2 | . . 2 . Analyze 2 | . . 2 . Garrison Access Hacks . | . . . . Unauthorized Hacks . | . . . . Terminals . | . . . . Fabricators . | . . . . Repair Stations . | . . . . Recycling Units . | . . . . Scanalyzers . | . . . . Garrison Access . | . . . . Data Cores Recovered . | . . . . Used . | . . . . Hacking Detections 4 | . 2 2 . Full Trace Events 2 | . 1 1 . Feedback Events . | . . . . Feedback Blocked . | . . . . Robot Schematics Acquired . | . . . . Robots Built . | . . . . Authchips . | . . . . Time . | . . . . Total Robot Build Rating . | . . . . Part Schematics Acquired 2 | . . 2 . Parts Built . | . . . . Authchips . | . . . . Time . | . . . . Total Part Build Rating . | . . . . Parts Repaired 2 | . . 2 . Time 64 | . . 64 . Parts Recycled 1 | . 1 . . Recycled Matter 12 | . 12 . . Retrieved Matter 12 | . 12 . . Retrieved Components . | . . . . Parts Scanalyzed 2 | . . 2 . Part Schematics Acquired 2 | . . 2 . Parts Damaged . | . . . . Bothacking | -11 -10 -9 -8 ------------ Run | Scr Mat Mat Mat Used RIF Installer . | . . . . Robots Hacked 1 | . . . 1 Non-combat . | . . . . Combat 1 | . . . 1 Robot Hacks Applied 1 | . . . 1 parse_system 1 | . . . 1 Relay Couplers Released . | . . . . Fabnet Peak Effective % . | . . . . Robots Rewired . | . . . . Allies Hacked . | . . . . Hacks Repelled . | . . . . Allies | -11 -10 -9 -8 -------- Run | Scr Mat Mat Mat Total Allies . | . . . . Largest Group . | . . . . Highest-Rated Group . | . . . . Highest-Rated Ally . | . . . . Total Orders . | . . . . Ally Attacks . | . . . . Total Damage . | . . . . Kills . | . . . . Allies Corrupted . | . . . . Allies Melted . | . . . . Intel | -11 -10 -9 -8 ------- Run | Scr Mat Mat Mat Robot Analysis Total 1 | . 1 . . Derelict Logs Recovered . | . . . . Drone Launches . | . . . . Drone Recoveries . | . . . . Exploration | -11 -10 -9 -8 ------------- Run | Scr Mat Mat Mat Turns Passed 3552 | 89 918 1613 932 Spaces Moved 1964 | 67 618 923 356 Core 54 | 17 3 30 4 Treads 212 | . . 212 . Legs 1592 | 50 615 674 253 Wheels . | . . . . Hover 99 | . . . 99 Flight 7 | . . 7 . Fastest Speed 50 | 50 120 100 120 Average Speed 145 | 102 120 135 222 Slowest Speed 900 | 120 200 275 900 Overloaded Moves . | . . . . Propulsion Burnouts . | . . . . Robots Hopped . | . . . . Cave-ins Triggered 1 | . . . 1 Exploration Rate (%) 38 | 6 62 62 23 Regions Visited 3 Branch Regions . Pre-discovered Areas . | . . . . Known Exits Taken . | . . . . Unknown Exits Taken 3 | 1 1 1 . Scrap Searched . | . . . . Spaces Dug . | . . . . Terrain Destroyed 315 | . 5 53 257 Melee . | . . . . Projectile 6 | . 5 . 1 AOE 309 | . . 53 256 Terrain Rammed . | . . . . Walls Destroyed . | . . . . Machines Disabled . | . . . . Actions | -11 -10 -9 -8 --------- Run | Scr Mat Mat Mat Total 2389 | 81 707 1155 446 Wait 97 | 1 18 59 19 Move 1961 | 66 617 922 356 Hop . | . . . . Pick Up 75 | 6 17 40 12 Fast Attach . | . . . . Attach 51 | 5 9 25 12 Detach . | . . . . Swap 26 | . 4 15 7 Drop 30 | . 6 17 7 Fire 146 | 3 36 77 30 Melee 2 | . . . 2 Ram 1 | . . . 1 Kick . | . . . . Crush . | . . . . Escape Stasis . | . . . . Rewire . | . . . . Trap . | . . . . Miscellaneous . | . . . . Route ------- -11/Scrapyard -10/Materials (discovered 2 exits: *Mat / [*Min]) -9/Materials (discovered 4 exits: [*Mat x2] / [*Min] / [*Sto]) -8/Materials History --------- Turn | Location | Event 2 | -11/Scrapyard | Met Revision 17 68 | -11/Scrapyard | Discovered new exit (range 8) 90 | -11/Scrapyard | Entered Materials 302 | -10/Materials | Build established: Mutant 530 | -10/Materials | Discovered new exit (range 13) 778 | -10/Materials | Discovered new exit (range 6) 819 | -10/Materials | Core integrity fell below 50% 866 | -10/Materials | Lost 4 parts (2n2w) 1008 | -10/Materials | Entered another Materials area 1008 | -9/Materials | Evolved 2 slots: Power x1, Utility x1 1361 | -9/Materials | Build established: Scavenger-Mutant 1429 | -9/Materials | Discovered new exit (range 12) 1505 | -9/Materials | Discovered new exit (range 15) 1519 | -9/Materials | System corruption reached 10% 1572 | -9/Materials | Lost 8 parts (1p2n3u2w) 1824 | -9/Materials | Core integrity fell below 50% 1995 | -9/Materials | Discovered new exit (range 15) 2197 | -9/Materials | Repaired Lgt. EM Pulse Cannon 2229 | -9/Materials | Repaired Imp. Light Cannon 2410 | -9/Materials | Discovered new exit (range 9) 2621 | -9/Materials | Entered another Materials area 2621 | -8/Materials | Evolved 2 slots: Utility x2 2785 | -8/Materials | Destroyed 7 combat bots 2859 | -8/Materials | Garrison activated, responded to threat 2872 | -8/Materials | Crushed by falling debris 2903 | -8/Materials | Lost 4 parts (1n2u1w) 3035 | -8/Materials | Build established: Mutant 3421 | -8/Materials | First assault squad dispatched 3522 | -8/Materials | Core integrity fell below 50% 3544 | -8/Materials | Core integrity fell below 20% 3553 | -8/Materials | Destroyed by L-31 Rogue with Katana Last Messages --------------- Jacked L-31 Rogue... Command string: be awesome No effect. K-01 Serf collects debris. R-06 Scavenger collects Lgt. Ion Engine. R-06 Scavenger collects Carbon-fiber Leg. Imp. Datajack destroyed. K-01 Serf collects debris. R-06 Scavenger collects Gravmag System. Critical hit (Burn: +37). U-05 Engineer lays Concrete. G-47 Trooper destroyed. Destroyed Lgt. Ion Engine. R-06 Scavenger destroyed. Destroyed Lgt. Ion Engine. U-05 Engineer destroyed. K-01 Serf collects debris. G-47 Trooper destroyed. Hvy. Rocket Launcher destroyed. K-01 Serf collects debris. Map ----- +----------------------------------------------------+ | | | | | | | | | | | ?????????????????????????????????????????????????? | | ?????????????????????????????????????????????????? | | ?????????????????????????????????????????????????? | | ?????????????????????????????????????????????????? | | ?????????????????????????????????????????????????? | | ?????????????????????????????????????????????????? | | ?????????????????????#####???????????????????????# | | ?????????????????#???# #???????????????????????# | | ????????????????? ??# #???????????????????????# | | ?????????????????"" ?# #???????????????????????# | | ??????????????""""" # #???????????????????????# | | ??????????????""""" # #???????????????????????# | | ??????????????? + #???????????????????????# | | ???????????????"" # #####???????????????????# | | ???????????????"" !!##?????????????????## | | ???????????????"" !! #?????????????????## | | ????????????????? || #?????????????????## | | ??????????????###### == | #???????########??## | | ??????????????# [ % ##??????# #??## | | ??????????????#% =[ l= #??????# """ #??## | | ???????? % tt %!k%%@ ##??????# """ #??## | | ???????????#####/####![ = #???????# """ [#??## | | ????????????????? #???????# ##### | | ??????????????# "" ### ##????????? ##### | | ??????????????# """ + % #################+### | | ???????????????? S" # | | ??????????????? ? # | | ???????????????? % ?; | | ???????????????####?########################## | | ????????????????????????????????????????????### | | ????????????????????????????????????????????### | | ?????????????????????????????????????????????## | | ???????????????????############################ | | ???????????????? | | ???????????????? | | ???????????????? | | ???????????????????####### #######+############+ | | ?????????????????????????# ????# #??????? | | ?????????????????????????# ?????# #????? | | ????????????????????????????????# """ #??? """ | | ????????????????????????????????# """""#?? """ | | ????????????????????????????????# """""#??? """ | | ????????????????????????????????# """""#?????? | | ????????????????????????????????# """ ??????? | | ????????????????????????????????# ???????### | +----------------------------------------------------+ Best States ------------- Heat Dissipation 48 Energy Generation 19 Energy Capacity 430 Matter Stores 500 Matter Capacity 500 Sight Range 16 Terrain Scan Density 10 ECM Strength 1 Armor Coverage 150 Evasion (%) 55 Recoil Reduction 2 Item Schematics ----------------- Lgt. EM Pulse Cannon | -9/Materials | Scanalyzed Imp. Light Cannon | -9/Materials | Scanalyzed Robot Schematics ------------------ None Fabricated ------------ Nothing Alien Tech Used ----------------- None Achievements -------------- Oops Power Corrupts Risk Taker Troublemaker Challenges ------------ None Game ------ Seed TeslaAccelerationCalibrator Manual? 0 Play Time 01:00:46 Cumulative 4.2 hours Start 2022.04.08 @ 22:27:54 End 2022.04.08 @ 23:40:40 Sessions 1 Manual Loads 0 Difficulty Rogue Special Mode None Game No. 3 Rogue 3 Adventurer 0 Explorer 0 Win Type - Total 0 Types 0/0/0/0/0/0/0/0/0 Lore% 1 Gallery% 5 Achievement% 8 Wizard Run 0 Options --------- ASCII 0 Keyboard 0 Movement Numpad Keybinds 0 Fullscreen 0 Font 16/SmallcapsGlow Map View 76x50 Tactical HUD 0 Map Filters NONE Filters NONE Steam 1 RUN: b4733c0c-eb10-428a-91dc-06622521765d